fUST/lending_fUST_20240625
["ID","MTS","AMOUNT","RATE_DAILY","PERIOD"]
[330354183,1719307838529,-151.0,0.0001821,2]
[330354184,1719307838544,-299.1,0.00018306,2]
[330354185,1719307838553,-151.0,0.00018306,2]
[330354186,1719307838563,-156.0,0.0001839,2]
[330354187,1719307838573,-299.1,0.00018402,2]
[330354188,1719307838582,-151.0,0.00018402,2]
[330354189,1719307838592,-633.61234005,0.00018493,2]
[330354190,1719307838601,-299.1,0.00018497,2]
[330354191,1719307838611,-151.0,0.00018497,2]
[330354192,1719307838620,-299.1,0.00018593,2]
[330354193,1719307838631,-151.0,0.00018593,2]
[330354194,1719307838642,-3235.23734999,0.000186,2]
[330354195,1719307838653,-299.1,0.00018689,2]
[330354196,1719307838663,-151.0,0.00018689,2]
[330354197,1719307838673,-190.77408721,0.00018722,2]
[330354198,1719307838683,-2609.86595096,0.00018723,2]
[330354199,1719307838693,-825.99151127,0.00018741,2]
[330354200,1719307838703,-2609.86595094,0.00018742,2]
[330354201,1719307838713,-2609.86595094,0.00018762,2]
[330354202,1719307838723,-2609.86595094,0.00018781,2]
[330354203,1719307838733,-299.1,0.00018785,2]
[330354204,1719307838743,-151.0,0.00018785,2]
[330354205,1719307838754,-2000.0,0.000188,2]
[330354206,1719307838764,-88888.0,0.000188,2]
[330354207,1719307838774,-2609.86595094,0.000188,2]
[330354208,1719307838785,-299.1,0.00018881,2]
[330354209,1719307838800,-151.0,0.00018881,2]
[330354210,1719307838810,-91332.05626552,0.000189,2]
[330354211,1719307838820,-12740.47178662,0.000189,2]
[330354220,1719307840669,-7232.19909091,0.000189,2]
[330354221,1719307840680,-25082.28929257,0.000189,2]
[330354324,1719307844985,-23160.2164758,0.000189,2]
[330354325,1719307844994,-234.382703,0.000189,2]
[330354326,1719307845003,-151.0,0.000189,2]
[330354327,1719307845013,-151.0,0.000189,2]
[330354328,1719307845023,-151.0,0.000189,2]
[330354329,1719307845032,-151.0,0.000189,2]
[330354330,1719307845042,-480785.88368597,0.000189,2]
[330354331,1719307845057,-6184.4074299,0.000189,2]
[330354434,1719308285502,-473.05019822,0.00022,20]
[330354435,1719308307068,-527.0,0.00022,15]
[330354442,1719308446050,3000.28,0.000225,30]
[330354528,1719309039017,-3220.711051,0.00017583,2]
[330354529,1719309039027,-479.43686316,0.00018,4]
[330354549,1719309041084,-354.2582298,0.00018,4]
[330354551,1719309041095,-166.30490704,0.00018,4]
[330354552,1719309041104,-985.89509296,0.00018073,2]
[330354616,1719309044395,-0.00937885,0.00018073,2]
[330354637,1719309416500,271.57637919,9.999e-05,2]
[330354639,1719309561518,208.5432965,0.0001212,2]
[330354675,1719310232107,-2266.20232864,0.00015,2]
[330354677,1719310232119,-3321.9582176,0.00017303,2]
[330354679,1719310232131,-5000.0,0.000175,2]
[330354682,1719310232143,-3235.23734999,0.00017581,2]
[330354684,1719310232154,-825.99151127,0.00018,2]
[330354685,1719310232165,-5926.83200992,0.00018,2]
[330354686,1719310232176,-500.0,0.00018,2]
[330354687,1719310232188,-190.77408721,0.00018,2]
[330354688,1719310232198,-287.11909617,0.00018073,2]
[330354689,1719310232210,-154.82195475,0.00018073,2]
[330354690,1719310232222,-5832.72106814,0.0001809,2]
[330354691,1719310232233,-597.89728057,0.00018105,2]
[330354702,1719310238265,-326.94861135,0.000175,2]
[330354703,1719310238278,-383.99051771,0.000175,2]
[330354704,1719310238291,-15645.63220301,0.000175,2]
[330354705,1719310238302,-278.10271943,0.00018105,2]
[330354706,1719310238313,-153.0,0.00018356,2]
[330354707,1719310238591,-153.0,0.00018356,2]
[330354708,1719310238616,-299.1,0.00018399,2]
[330354709,1719310238626,-299.1,0.00018468,2]
[330354710,1719310238636,-151.0,0.00018468,2]
[330354711,1719310238647,-633.61234005,0.0001852,2]
[330354712,1719310238657,-299.1,0.00018538,2]
[330354713,1719310238668,-151.0,0.00018538,2]
[330354714,1719310238678,-299.1,0.00018608,2]
[330354715,1719310238688,-86.05273751,0.00018608,2]
[330354716,1719310238874,-64.94726249,0.00018608,2]
[330354717,1719310238884,-156.0,0.0001862,2]
[330354718,1719310238895,-299.1,0.00018678,2]
[330354719,1719310238910,-151.0,0.00018678,2]
[330354720,1719310238920,-2609.86595096,0.00018717,2]
[330354721,1719310238931,-811.14465118,0.00018737,2]
[330354722,1719310238940,-2609.86595094,0.00018738,2]
[330354723,1719310238951,-299.1,0.00018748,2]
[330354724,1719310238961,-151.0,0.00018748,2]
[330354725,1719310238971,-2609.86595094,0.00018759,2]
[330354726,1719310238983,-154.86836189,0.00018778,2]
[330354727,1719310238995,-2609.86595094,0.00018779,2]
[330354728,1719310239004,-154.88357083,0.00018799,2]
[330354729,1719310239014,-2000.0,0.000188,2]
[330354730,1719310239024,-88888.0,0.000188,2]
[330354731,1719310239034,-2609.86595094,0.000188,2]
[330354732,1719310239044,-299.1,0.00018818,2]
[330354733,1719310239057,-151.0,0.00018818,2]
[330354734,1719310239068,-299.1,0.00018888,2]
[330354735,1719310239080,-151.0,0.00018888,2]
[330354736,1719310239091,-91332.05626552,0.000189,2]
[330354737,1719310239101,-3113.7636023,0.000189,2]
[330354738,1719310239111,-32099.77488035,0.000189,2]
[330354780,1719310240928,-4393.21865499,0.000189,2]
[330355199,1719311294960,10280.77397333,0.000225,30]
[330355214,1719311432280,-1994.3200245,0.00018,2]
[330355229,1719311438954,-2809.10450191,0.00018,2]
[330355231,1719311438968,-1123.40748351,0.00018,2]
[330355233,1719311438978,-825.99151127,0.00018104,2]
[330355235,1719311438988,-876.0,0.00018384,2]
[330355236,1719311438999,-199.4,0.00018427,2]
[330355237,1719311439009,-199.4,0.00018495,2]
[330355238,1719311439019,-6263.8,0.000185,2]
[330355239,1719311439029,-154.86836189,0.00018561,2]
[330355240,1719311439040,-199.4,0.00018562,2]
[330355241,1719311439051,-199.4,0.00018629,2]
[330355242,1719311439062,-811.14465118,0.00018696,2]
[330355243,1719311439072,-199.4,0.00018697,2]
[330355244,1719311439082,-151.0,0.00018697,2]
[330355245,1719311439093,-153.0,0.000187,2]
[330355246,1719311439103,-153.0,0.000187,2]
[330355247,1719311439113,-307.8543545,0.000187,2]
[330355248,1719311439123,-153.0,0.000187,2]
[330355249,1719311439133,-153.0,0.000187,2]
[330355250,1719311439143,-153.0,0.000187,2]
[330355251,1719311439153,-199.4,0.00018764,2]
[330355252,1719311439163,-151.0,0.00018764,2]
[330355253,1719311439174,-153.0,0.000188,2]
[330355254,1719311439184,-154.2887381,0.000188,2]
[330355255,1719311439194,-153.0,0.000188,2]
[330355256,1719311439204,-307.1110733,0.000188,2]
[330355257,1719311439214,-153.0,0.000188,2]
[330355258,1719311439224,-306.0,0.000188,2]
[330355259,1719311439236,-199.4,0.00018831,2]
[330355260,1719311439246,-151.0,0.00018831,2]
[330355261,1719311439256,-199.4,0.00018899,2]
[330355262,1719311439267,-151.0,0.00018899,2]
[330355263,1719311439277,-154.88357083,0.00018899,2]
[330355264,1719311439287,-156.0,0.000189,2]
[330355265,1719311439298,-2609.86595096,0.00018957,2]
[330355266,1719311439307,-199.4,0.00018966,2]
[330355267,1719311439318,-151.0,0.00018966,2]
[330355268,1719311439332,-159.73407763,0.00018979,2]
[330355269,1719311439341,-2609.86595094,0.0001898,2]
[330355270,1719311439351,-159.73407763,0.00018999,2]
[330355271,1719311439361,-378.12140249,0.00019,2]
[330355272,1719311439372,-525.44398141,0.00019,2]
[330355273,1719311439382,-500.0,0.00019,2]
[330355274,1719311439391,-1000.0,0.00019,5]
[330355275,1719311439403,-153.0,0.00019,2]
[330355276,1719311439413,-2092.0,0.00019,2]
[330355277,1719311439423,-40739.66944457,0.00019,4]
[330355278,1719311439434,-2609.86595094,0.00019002,2]
[330355279,1719311439445,-2609.86595094,0.00019025,2]
[330355280,1719311439455,-154.82195475,0.00019032,2]
[330355281,1719311439466,-199.4,0.00019033,2]
[330355282,1719311439478,-151.0,0.00019033,2]
[330355283,1719311439489,-372.56793987,0.0001904,2]
[330355284,1719311439500,-250.0,0.00019041,2]
[330355285,1719311439509,-606.02177992,0.00019047,2]
[330355286,1719311439519,-2609.86595094,0.00019047,2]
[330355287,1719311439530,-152614.817266,0.00019048,2]
[330355288,1719311439540,-2000.0,0.00019057,2]
[330355289,1719311439550,-3304.55692571,0.00019057,2]
[330355290,1719311439564,-4873.72874033,0.00019057,2]
[330355291,1719311439575,-5682.27206551,0.00019058,2]
[330355292,1719311439587,-8119.41808827,0.00019058,2]
[330355309,1719311443788,-9736.07091371,0.00019058,2]
[330355418,1719311487416,1801.09,0.00026,120]
[330355421,1719311820239,157.37635578,9.999e-05,2]
[330355425,1719312043043,-5073.0,0.00022,15]
[330355426,1719312043073,-302.747036,0.000225,10]
[330355427,1719312043100,-310.0,0.00023,10]
[330355428,1719312043127,-1001.36702422,0.00023,12]
[330355429,1719312043160,-200.0,0.00024658,15]
[330355430,1719312043188,-5000.0,0.00025,14]
[330355431,1719312043219,-706.8324966,0.00025,30]
[330355432,1719312043280,-442.70785427,0.00027,15]
[330355433,1719312043315,-500.0,0.00027288,30]
[330355434,1719312043350,-500.0,0.00027288,30]
[330355435,1719312043387,-500.0,0.00027288,30]
[330355436,1719312043420,-448.62595708,0.00027288,30]
[330355437,1719312043455,-166.0831584,0.00027397,10]
[330355438,1719312043486,-160.0,0.00027397,10]
[330355439,1719312043522,-160.61838421,0.00027397,10]
[330355440,1719312043556,-2094.17848598,0.000275,30]
[330355441,1719312043600,-12166.18367155,0.00028,30]
[330355442,1719312043637,-1000.0,0.00029,29]
[330355443,1719312043672,-1206.67266007,0.00029093,30]
[330355444,1719312043704,-2000.0,0.000298,20]
[330355445,1719312043741,-7741.31437947,0.0003,10]
[330355446,1719312043772,-5000.0,0.0003,20]
[330355447,1719312043804,-3642.68,0.0003,17]
[330355448,1719312043835,-350.63526596,0.0003,30]
[330355449,1719312043866,-18694.09631456,0.00031199,14]
[330355450,1719312043898,-500.0,0.00031603,120]
[330355451,1719312043928,-500.0,0.00031603,120]
[330355452,1719312043958,-415.69,0.00031603,120]
[330355453,1719312043993,-500.0,0.00031603,120]
[330355454,1719312044024,-167.25,0.00031603,120]
[330355455,1719312044056,-500.0,0.00031603,120]
[330355456,1719312044086,-500.0,0.00031603,120]
[330355457,1719312044117,-500.0,0.00031603,120]
[330355458,1719312044151,-500.0,0.00031603,120]
[330355459,1719312044181,-500.0,0.00031603,120]
[330355460,1719312044211,-500.0,0.00031603,120]
[330355461,1719312044242,-500.0,0.00031603,120]
[330355462,1719312044273,-500.0,0.00031603,120]
[330355463,1719312044304,-500.0,0.00031603,120]
[330355464,1719312044337,-500.0,0.00031603,120]
[330355465,1719312044369,-500.0,0.00031603,120]
[330355466,1719312044399,-500.0,0.00031603,120]
[330355467,1719312044428,-553.44,0.00031603,120]
[330355468,1719312044459,-500.0,0.00031603,120]
[330355469,1719312044491,-28746.83187065,0.00031854,10]
[330355470,1719312044526,-2342.15442873,0.000325,60]
[330355471,1719312044563,-287.9413122,0.00033,14]
[330355472,1719312044775,-200.0,0.0003396,120]
[330355473,1719312044802,-151.8809986,0.00034301,12]
[330355474,1719312044828,-1277.79840287,0.00034728,12]
[330355475,1719312044853,-2005.52,0.000348,22]
[330355476,1719312044879,-150.0,0.00035,12]
[330355477,1719312044903,-869.23378434,0.00035,120]
[330355478,1719312044928,-1635.93,0.00035,120]
[330355479,1719312044954,-2413.34532015,0.0003524,120]
[330355480,1719312044980,-500.0,0.00035616,30]
[330355481,1719312045006,-500.0,0.00035616,30]
[330355482,1719312045031,-500.0,0.00035616,30]
[330355483,1719312045056,-626.47297222,0.00035616,30]
[330355484,1719312045082,-150.0,0.00036,14]
[330355485,1719312045108,-151.8809986,0.00036301,21]
[330355486,1719312045134,-200.0,0.00037,16]
[330355487,1719312045159,-350.0,0.00038,120]
[330355488,1719312045184,-151.8809986,0.00038301,29]
[330355489,1719312045208,-1452.80209204,0.00039,11]
[330355490,1719312045234,-2552.53816272,0.000398,120]
[330355491,1719312045258,-1000.0,0.000399,31]
[330355492,1719312045284,-1000.0,0.000399,31]
[330355493,1719312045309,-772279.66596991,0.0004,15]
[330355495,1719312545768,2045.34750211,9.999e-05,2]
[330355496,1719312585175,270.09236386,9.999e-05,2]
[330355522,1719312633279,-453.9211165,0.00017759,2]
[330355523,1719312633288,-809.8342188,0.00017891,2]
[330355524,1719312633297,-455.96489427,0.00018071,2]
[330355547,1719312638734,-370.026617,0.00018071,2]
[330355548,1719312638746,-876.0,0.000184,2]
[330355550,1719312638756,-300.0,0.00018857,2]
[330355552,1719312638765,-651.21208712,0.00018858,2]
[330355631,1719313065155,232.29883522,9.999e-05,2]
[330355632,1719313072444,10560.92625688,9.999e-05,2]
[330355633,1719313228885,159.37417924,9.999e-05,2]
[330355634,1719313267081,159.31864029,0.0001212,2]
[330355659,1719313833039,-947.59886703,0.00017704,2]
[330355661,1719313833048,-11.0379863,0.00017705,2]
[330355663,1719313833059,-864.9620137,0.00017705,2]
[330355664,1719313833068,-604.4732383,0.00017797,2]
[330355667,1719313833078,-825.99151127,0.00018,2]
[330355670,1719313833088,-167.0540819,0.00018,2]
[330355672,1719313833097,-5832.72106814,0.00018081,2]
[330355674,1719313833106,-190.77408721,0.00018798,2]
[330355675,1719313833115,-1704.89347538,0.00018799,2]
[330355676,1719313833126,-154.82195475,0.00018858,2]
[330355677,1719313833141,-287.11909617,0.00018858,2]
[330355678,1719313833151,-1704.89347537,0.00018866,2]
[330355679,1719313833160,-1337.20900154,0.00018887,2]
[330355694,1719313841244,-662.79099846,0.00018887,2]
[330355696,1719313841255,-2086.4791214,0.00018896,2]
[330355900,1719315033905,-2957.8741145,0.00017598,2]
[330355901,1719315033918,-696.6098174,0.00017598,2]
[330355902,1719315033929,-5587.75796124,0.00017681,2]
[330355903,1719315033940,-947.59886703,0.00017681,2]
[330355904,1719315033950,-190.77408721,0.00018,2]
[330355905,1719315033960,-227.37533299,0.00018,2]
[330355906,1719315033971,-457.90975289,0.00018383,2]
[330355907,1719315033984,-418.09024711,0.00018383,2]
[330355908,1719315033994,-743.77531529,0.00018569,2]
[330356164,1719315038978,-1001.72502182,0.00018569,2]
[330356165,1719315038991,-466.29326252,0.00018569,2]
[330356219,1719315043877,-947.59886703,0.00017597,2]
[330356220,1719315043887,-85.9045498,0.00018569,2]
[330356222,1719315043897,-1084.81929884,0.000187,2]
[330356224,1719315043908,-1084.81929884,0.00018725,2]
[330356225,1719315043918,-780.75798549,0.0001875,2]
[330356313,1719315048760,3321.0,0.00026,120]
[330356316,1719315448703,1358.0,0.00026,120]
[330356319,1719315779393,273.37336231,9.9e-05,2]
[330356320,1719315787392,273.37336231,9.9e-05,2]
[330356321,1719315796049,273.37336231,9.9e-05,2]
[330356322,1719315804444,273.37336231,9.9e-05,2]
[330356323,1719315848605,176.03735811,9.999e-05,2]
[330356324,1719315881645,176.52664349,0.0001212,2]
[330356327,1719316202445,339.5000166,9.999e-05,2]
[330356349,1719316232171,-286.9619791,0.0001807,2]
[330356350,1719316232186,-190.77408721,0.0001807,2]
[330356351,1719316232198,-876.0,0.00018352,2]
[330356352,1719316232213,-932.53923673,0.00018407,2]
[330356353,1719316232226,-7333.60565183,0.000186,2]
[330356354,1719316232241,-554.41079757,0.000187,2]
[330356355,1719316232257,-0.11567247,0.0001879,2]
[330356356,1719316232538,-339.5000166,0.0001879,2]
[330356463,1719316322871,933.22112394,9.999e-05,2]
[330356464,1719316372867,933.22112394,0.0001212,2]
[330356465,1719316420870,155.04860869,0.0001212,2]
[330356481,1719317432579,-920.54070808,0.00014691,2]
[330356484,1719317432594,-268.90334345,0.00014691,2]
[330356486,1719317432603,-1000.0,0.00018,5]
[330356488,1719317432612,-876.0,0.00018356,2]
[330356490,1719317432622,-190.77408721,0.00018568,2]
[330356492,1719317432631,-494.73998223,0.000187,2]
[330356494,1719317432641,-485.10944783,0.000187,2]
[330356495,1719317432650,-494.7399822,0.00018725,2]
[330356497,1719317432660,-494.7399822,0.0001875,2]
[330356499,1719317432669,-494.7399822,0.00018775,2]
[330356501,1719317432678,-287.11909617,0.0001879,2]
[330356503,1719317432688,-154.82195475,0.0001879,2]
[330356505,1719317432697,-2244.55214227,0.0001879,2]
[330356508,1719317432708,-1104.0,0.0001879,2]
[330356604,1719318612154,-276.41379434,0.000179,2]
[330356625,1719318638757,-1144.47212886,0.000179,2]
[330356939,1719318995858,210.0,0.00025,120]
[330356940,1719319021210,188.0,0.0002,120]
[330356941,1719319023568,1562.84526749,0.0002,120]
[330356942,1719319027460,293.29380902,7e-05,120]
[330356943,1719319037339,498.59248808,0.00021,120]
[330356972,1719319832137,-476.14397417,0.000179,2]
[330356973,1719319832151,-3114.81506063,0.000179,2]
[330356975,1719319832160,-190.77408721,0.0001807,2]
[330356976,1719319832170,-938.37197417,0.0001807,2]
[330356977,1719319832180,-876.0,0.00018319,2]
[330356978,1719319832190,-635.62696183,0.00018362,2]
[330356979,1719319832209,-639.05198091,0.000187,2]
[330356981,1719319832226,-639.05198089,0.00018725,2]
[330356983,1719319832236,-234.382703,0.0001875,2]
[330356985,1719319832247,-639.05198089,0.0001875,2]
[330356986,1719319832257,-614.116169,0.0001875,2]
[330356987,1719319832267,-614.116169,0.0001875,2]
[330356988,1719319832277,-614.116169,0.0001875,2]
[330356989,1719319832287,-614.116169,0.0001875,2]
[330356990,1719319832297,-614.116169,0.0001875,2]
[330356991,1719319832307,-614.116169,0.0001875,2]
[330356992,1719319832317,-151.0,0.0001875,2]
[330356993,1719319832328,-151.0,0.0001875,2]
[330356994,1719319832337,-151.0,0.0001875,2]
[330356995,1719319832347,-151.0,0.0001875,2]
[330356996,1719319832357,-151.0,0.0001875,2]
[330356997,1719319832367,-151.0,0.0001875,2]
[330356998,1719319832376,-249.12465841,0.00018774,2]
[330356999,1719319832386,-639.05198089,0.00018775,2]
[330357000,1719319832396,-614.116169,0.00018775,2]
[330357001,1719319832407,-614.116169,0.00018775,2]
[330357002,1719319832417,-614.116169,0.00018775,2]
[330357003,1719319832427,-614.116169,0.00018775,2]
[330357004,1719319832437,-151.0,0.00018775,2]
[330357005,1719319832447,-151.0,0.00018775,2]
[330357006,1719319832456,-151.0,0.00018775,2]
[330357007,1719319832470,-151.0,0.00018775,2]
[330357008,1719319832480,-3825.7931047,0.0001878,2]
[330357009,1719319832554,-334.59120623,0.0001878,2]
[330357010,1719319832563,-127.63679377,0.0001878,2]
[330357080,1719320782697,10000.0,0.00026,120]
[330357089,1719321032371,-8951.782667,0.00017717,2]
[330357090,1719321032382,-190.77408721,0.00018315,2]
[330357091,1719321032392,-620.7813481,0.00018316,2]
[330357092,1719321032403,-876.0,0.00018407,2]
[330357093,1719321032412,-159.76299523,0.000187,2]
[330357094,1719321032422,-424.47076686,0.000187,2]
[330357095,1719321032432,-159.76299522,0.00018767,2]
[330357096,1719321032441,-1885.01606392,0.0001879,2]
[330357169,1719321038602,-8434.76845049,0.0001879,2]
[330357388,1719321043688,-460.14393361,0.0001879,2]
[330357466,1719321046581,-509.45704281,0.0001879,2]
[330357481,1719321051447,10000.0,0.000241,59]
[330357483,1719321152444,527.27921516,0.00019177,60]
[330357485,1719321458715,602.0,0.00026,120]
[330357487,1719321931022,276.41379434,0.0001,2]
[330357488,1719321931047,263.97356327,0.0001,2]
[330357489,1719321987508,360.25823841,0.00012121,2]
[330357490,1719322002508,360.25823841,0.00012121,2]
[330357491,1719322021817,16220.66177805,0.0001,2]
[330357492,1719322113016,156.41211851,0.0001,2]
[330357493,1719322129729,16220.66177805,0.0001,2]
[330357494,1719322158529,156.41211851,0.00012121,2]
[330357495,1719322181235,16220.66177805,0.00012121,2]
[330357542,1719322238725,-156.41211851,0.00014692,2]
[330357543,1719322238735,-841.51061621,0.00014692,2]
[330357544,1719322238747,-2991.20585304,0.00014692,2]
[330357545,1719322238759,-9003.00926753,0.00014692,2]
[330357546,1719322238910,-1058.862999,0.00014692,2]
[330357654,1719322244045,-2326.07304227,0.00014692,2]
[330357655,1719322244056,-4286.9164544,0.0001757,2]
[330357656,1719322244067,-12306.8815152,0.00017618,2]
[330357657,1719322244076,-1949.50946655,0.00017899,2]
[330357659,1719322244091,-4453.95695625,0.00017899,2]
[330357660,1719322244102,-500.0,0.00018,2]
[330357661,1719322244111,-150.595208,0.00018257,2]
[330357662,1719322244120,-876.0,0.00018554,2]
[330357663,1719322244130,-157.56910896,0.00018602,2]
[330357664,1719322244139,-300.676244,0.00018699,2]
[330357665,1719322244148,-300.676244,0.00018699,2]
[330357666,1719322244157,-249.255125,0.00018699,2]
[330357667,1719322244167,-153.0,0.000187,2]
[330357668,1719322244176,-159.76299522,0.000187,2]
[330357669,1719322244185,-300.676244,0.000187,2]
[330357670,1719322244194,-300.676244,0.000187,2]
[330357671,1719322244203,-10000.0,0.000187,2]
[330357672,1719322244213,-151.0,0.00018748,2]
[330357673,1719322244222,-1688.21117984,0.00018779,2]
[330357674,1719322244231,-1044.99950462,0.00018779,2]
[330357675,1719322244240,-765.95246324,0.0001879,2]
[330357676,1719322244250,-155.0,0.0001879,2]
[330357677,1719322244259,-300.676244,0.0001879,2]
[330357678,1719322244268,-300.676244,0.0001879,2]
[330357679,1719322244277,-300.676244,0.00018799,2]
[330357680,1719322244287,-300.676244,0.00018799,2]
[330357681,1719322244296,-190.77408721,0.00018799,2]
[330357682,1719322244308,-3045.90327232,0.000188,2]
[330357683,1719322244317,-88888.0,0.000188,2]
[330357684,1719322244326,-2000.0,0.000188,2]
[330357685,1719322244336,-151.0,0.000188,2]
[330357686,1719322244345,-151.0,0.000188,2]
[330357687,1719322244354,-159.76299522,0.000188,2]
[330357688,1719322244364,-300.676244,0.000188,2]
[330357689,1719322244373,-300.676244,0.000188,2]
[330357690,1719322244383,-155.41452821,0.00018855,2]
[330357691,1719322244392,-299.19286096,0.00018855,2]
[330357692,1719322244401,-151.0,0.00018856,2]
[330357693,1719322244411,-300.676244,0.00018856,2]
[330357694,1719322244421,-300.676244,0.00018856,2]
[330357695,1719322244430,-264.13485685,0.00018886,2]
[330357696,1719322244439,-44752.45103049,0.000189,2]
[330357770,1719322549040,156.41211851,0.0001,2]
[330357773,1719322595765,6715.83091847,0.0001,2]
[330357774,1719322601434,606.02177992,0.00012121,2]
[330357779,1719322926066,156.41211851,0.0001,2]
[330357780,1719322956142,156.41211851,0.0001,2]
[330357782,1719323006562,156.41211851,0.00012121,2]
[330357783,1719323193078,156.41211851,0.0001,2]
[330357784,1719323252592,156.41211851,0.00012121,2]
[330357791,1719323376103,156.41211851,0.0001,2]
[330357792,1719323406101,156.41211851,0.0001,2]
[330357870,1719323439385,-250.0,0.00017138,2]
[330357871,1719323439396,-1155.29436376,0.00017229,2]
[330357872,1719323439413,-1635.35962319,0.00017229,2]
[330357881,1719323441187,-209.34601305,0.00017229,2]
[330357882,1719323441197,-300.0,0.00017418,2]
[330357883,1719323441206,-300.0,0.00017418,2]
[330357884,1719323441216,-7687.252189,0.00017419,2]
[330357886,1719323441225,-500.0,0.000179,7]
[330357888,1719323441234,-500.0,0.000179,7]
[330357889,1719323441244,-500.0,0.000179,7]
[330357890,1719323441253,-415.69,0.000179,7]
[330357891,1719323441262,-500.0,0.000179,7]
[330357892,1719323441272,-500.0,0.000179,7]
[330357893,1719323441282,-500.0,0.000179,7]
[330357894,1719323441292,-500.0,0.000179,7]
[330357895,1719323441302,-500.0,0.000179,7]
[330357896,1719323441312,-500.0,0.000179,7]
[330357897,1719323441321,-500.0,0.000179,7]
[330357898,1719323441331,-500.0,0.000179,7]
[330357899,1719323441340,-500.0,0.000179,7]
[330357900,1719323441350,-500.0,0.000179,7]
[330357901,1719323441360,-500.0,0.000179,7]
[330357902,1719323441369,-500.0,0.000179,7]
[330357903,1719323441378,-500.0,0.000179,7]
[330357904,1719323441388,-500.0,0.000179,7]
[330357905,1719323441397,-220.69,0.000179,7]
[330357906,1719323441411,-500.0,0.00018,2]
[330357907,1719323441422,-190.77408721,0.00018,2]
[330357908,1719323441432,-1363.07515682,0.000187,2]
[330357909,1719323441442,-481.31168296,0.000187,2]
[330357910,1719323441453,-1363.0751568,0.00018746,2]
[330357911,1719323441464,-1363.0751568,0.00018791,2]
[330357912,1719323441474,-22510.53405364,0.000188,2]
[330357913,1719323441488,-1202.85037948,0.000188,2]
[330358001,1719323444418,-28375.05498281,0.000188,2]
[330358002,1719323444427,-63328.32176671,0.000188,2]
[330358004,1719323444439,-2000.0,0.000188,2]
[330358006,1719323444448,-594.0,0.000188,2]
[330358007,1719323444457,-1363.0751568,0.00018837,2]
[330358008,1719323444466,-360.0,0.00018869,2]
[330358010,1719323444477,-876.0,0.0001887,2]
[330358012,1719323444487,-1363.0751568,0.00018882,2]
[330358013,1719323444496,-151.0,0.00018894,2]
[330358014,1719323444505,-372.56793987,0.00018895,2]
[330358015,1719323444514,-43955.83075028,0.000189,2]
[330358016,1719323444527,-3175.23009901,0.000189,2]
[330358017,1719323444537,-23160.2164758,0.000189,2]
[330358018,1719323444546,-287.11909617,0.000189,2]
[330358019,1719323444555,-154.83742071,0.000189,2]
[330358020,1719323444564,-3113.7636023,0.000189,2]
[330358021,1719323444573,-278233.28074502,0.000189,2]
[330358038,1719323447118,-1615.55854608,0.000189,2]
[330358064,1719324041725,991.38,0.000225,30]
[330358065,1719324405168,-188.2391668,0.00017455,2]
[330358066,1719324405189,-85.33921224,0.00017459,2]
[330358082,1719324632168,-300.0,0.00017458,2]
[330358084,1719324632179,-161.44437391,0.00017459,2]
[330358086,1719324632188,-3360.8348276,0.00017459,2]
[330358089,1719324632210,-805.22951312,0.00017459,2]
[330358181,1719324638227,-11747.23479151,0.00017459,2]
[330358183,1719324638240,-307.36264582,0.00017459,2]
[330358184,1719324638250,-220.80388957,0.00017459,2]
[330358196,1719324641118,-81.71245629,0.00017459,2]
[330358197,1719324641128,-352.51754366,0.00017459,2]